bitfinex-derivatives/quotes_BTCF0:USTF0_20240905
["timestamp","ask_amount","ask_price","bid_price","bid_amount"]
[1725513106573,0.66361126,57112.0,57111.0,0.0454]
[1725513107062,0.67161126,57112.0,57111.0,0.0454]
[1725513107468,0.67161126,57112.0,57106.0,0.00026276]
[1725513107675,0.24,57108.0,57107.0,0.061291]
[1725513108964,0.06281126,57111.0,57108.0,0.06129]
[1725513109164,0.24,57110.0,57108.0,0.06129]
[1725513110569,0.24,57110.0,57108.0,0.06229]
[1725513110777,0.31081126,57110.0,57108.0,0.06229]
[1725513110967,0.06281126,57109.0,57108.0,0.06229]
[1725513112867,0.07081126,57109.0,57108.0,0.06229]
[1725513114678,0.008,57109.0,57108.0,0.06229]
[1725513118170,0.008,57109.0,57108.0,0.001]
[1725513118370,0.179289,57109.0,57108.0,0.001]
[1725513119468,0.24210345,57109.0,57108.0,0.001]
[1725513121576,0.07081445,57109.0,57108.0,0.06229]
[1725513124878,0.008,57109.0,57108.0,0.06229]
[1725513128177,0.258,57109.0,57108.0,0.001]
[1725513128377,0.32081445,57109.0,57108.0,0.001]
[1725513128579,0.38210345,57109.0,57108.0,0.001]
[1725513132781,0.74290345,57109.0,57108.0,0.001]
[1725513133793,0.79666505,57109.0,57108.0,0.001]
[1725513137788,0.061291,57107.0,57106.0,0.02952964]
[1725513137981,0.2350526,57107.0,57106.0,0.02952964]
[1725513138189,1.42318705,57107.0,57106.0,0.02952964]
[1725513138890,1.42918705,57107.0,57106.0,0.03052964]
[1725513139794,0.82918705,57107.0,57106.0,0.03052964]
[1725513140982,0.30386705,57107.0,57106.0,0.03052964]
[1725513141290,0.82918705,57107.0,57106.0,0.03052964]
[1725513141602,0.30386705,57107.0,57106.0,0.03052964]
[1725513141792,0.2410526,57107.0,57106.0,0.03052964]
[1725513142497,0.2410547,57107.0,57106.0,0.03052964]
[1725513144811,0.52994687,57107.0,57106.0,0.03052964]
[1725513144995,0.46865587,57107.0,57106.0,0.09182164]
[1725513145191,0.34865587,57107.0,57106.0,0.09182164]
[1725513145391,0.34865587,57107.0,57106.0,0.33182164]
[1725513145701,0.0597637,57107.0,57106.0,0.33182164]
[1725513147807,0.12257815,57107.0,57106.0,0.33182164]
[1725513148105,0.34865587,57107.0,57106.0,0.33182164]
[1725513148490,0.12257815,57107.0,57106.0,0.33182164]
[1725513151693,0.0597637,57107.0,57106.0,0.33182164]
[1725513153292,0.3608,57120.0,57107.0,0.52532]
[1725513153494,0.6919,57130.0,57114.0,0.3608]
[1725513153701,0.3608,57124.0,57123.0,0.24]
[1725513153898,0.3608,57124.0,57123.0,0.301274]
[1725513153899,0.05374282,57124.0,57123.0,0.301274]
[1725513154100,0.05374282,57126.0,57125.0,0.061272]
[1725513154396,0.05374282,57126.0,57125.0,0.301272]
[1725513155697,0.06574282,57126.0,57125.0,0.302272]
[1725513156397,0.05774282,57126.0,57125.0,0.32968272]
[1725513156597,0.05774282,57126.0,57125.0,0.37778272]
[1725513158394,0.3608,57130.0,57125.0,0.31651072]
[1725513158595,0.6008,57144.0,57138.0,0.061257]
[1725513158798,0.3608,57144.0,57139.0,0.0462]
[1725513159003,0.301256,57140.0,57139.0,0.0462]
[1725513159494,0.301256,57140.0,57132.0,0.061264]
[1725513159695,0.239,57134.0,57133.0,0.0462]
[1725513160698,0.6008,57137.0,57133.0,0.0462]
[1725513161204,0.06278726,57136.0,57133.0,0.107463]
[1725513161406,0.06278726,57136.0,57134.0,0.24]
[1725513161904,0.06278726,57136.0,57135.0,0.0485]
[1725513162602,0.06278726,57136.0,57135.0,0.109761]
[1725513162905,0.12425364,57142.0,57135.0,0.0485]
[1725513163093,0.12425364,57142.0,57137.0,0.24]
[1725513163506,0.05372779,57141.0,57137.0,0.24]
[1725513163702,0.05372779,57140.0,57137.0,0.24]
[1725513164001,0.05372779,57139.0,57137.0,0.301259]
[1725513164206,0.29372779,57138.0,57136.0,0.0463]
[1725513164408,0.29372779,57138.0,57135.0,0.0495]
[1725513164409,0.05372779,57137.0,57135.0,0.0495]
[1725513165001,0.05372779,57137.0,57135.0,0.0485]
[1725513165199,0.005,57136.0,57135.0,0.0485]
[1725513165499,0.05872779,57136.0,57135.0,0.0485]
[1725513166009,0.05872779,57136.0,57135.0,0.109761]
[1725513166502,0.05372779,57136.0,57135.0,0.110761]
[1725513168406,0.06072779,57136.0,57135.0,0.110761]
[1725513169002,0.06072806,57136.0,57135.0,0.110761]
[1725513169200,0.00021238,57142.0,57135.0,0.2895]
[1725513169401,0.00021238,57142.0,57141.0,0.061255]
[1725513169808,0.00021238,57142.0,57141.0,0.301255]
[1725513170313,0.0539362,57142.0,57141.0,0.301255]
[1725513170999,0.0539362,57142.0,57141.0,0.061255]
[1725513171398,0.2939362,57142.0,57141.0,0.061255]
[1725513173117,0.2939362,57142.0,57139.0,0.24]
[1725513173317,0.24021238,57142.0,57141.0,0.001]
[1725513173503,0.29393738,57142.0,57141.0,0.001]
[1725513173907,0.29393737,57142.0,57141.0,0.001]
[1725513174915,0.29493737,57142.0,57140.0,0.061256]
[1725513175111,0.11650219,57141.0,57140.0,0.061256]
[1725513175311,0.05372499,57141.0,57140.0,0.061256]
[1725513175915,0.05272499,57141.0,57140.0,0.061256]
[1725513176419,0.04172499,57141.0,57140.0,0.061256]
[1725513176917,0.04272499,57141.0,57140.0,0.062256]
[1725513178119,0.11850219,57141.0,57140.0,0.062256]
[1725513180018,0.09799342,57141.0,57140.0,0.062256]
[1725513180520,0.09799035,57141.0,57140.0,0.062256]
[1725513181113,0.03521622,57141.0,57140.0,0.062256]
[1725513181508,0.09799035,57141.0,57140.0,0.062256]
[1725513181910,0.014,57141.0,57140.0,0.062256]
[1725513185120,0.06772071,57141.0,57140.0,0.062256]
[1725513188025,0.014,57141.0,57140.0,0.062256]
[1725513189629,0.06772323,57141.0,57140.0,0.062256]
[1725513192031,0.06772323,57141.0,57140.0,0.001]
[1725513192243,0.12897823,57141.0,57140.0,0.001]
[1725513192530,1.42537079,57141.0,57140.0,0.001]
[1725513193629,0.82537079,57141.0,57140.0,0.001]
[1725513193827,1.42537079,57141.0,57140.0,0.001]
[1725513194031,0.07677579,57141.0,57140.0,0.241]
[1725513194227,0.07677579,57141.0,57140.0,0.2869]
[1725513194228,0.014,57141.0,57140.0,0.2869]
[1725513194431,0.014,57141.0,57140.0,0.348156]
[1725513195134,0.06772477,57141.0,57140.0,0.348156]
[1725513195519,0.06772477,57141.0,57140.0,0.108156]
[1725513196927,0.13050056,57141.0,57140.0,0.108156]
[1725513198334,0.97803079,57141.0,57140.0,0.001]
[1725513198536,0.45803079,57141.0,57140.0,0.001]
[1725513200823,0.51176056,57141.0,57140.0,0.001]
[1725513202532,0.45803079,57141.0,57140.0,0.001]
[1725513204543,0.061262,57134.0,57133.0,0.0462]
[1725513204725,0.792062,57134.0,57133.0,0.0462]
[1725513204933,0.662062,57134.0,57133.0,0.0462]
[1725513205332,0.662062,57134.0,57133.0,0.07476478]
[1725513205729,0.663062,57134.0,57133.0,0.07476478]
[1725513205943,0.668062,57134.0,57133.0,0.07476478]
[1725513206433,0.73085122,57134.0,57133.0,0.07476478]
[1725513206937,0.37005122,57134.0,57133.0,0.07476478]
[1725513207137,0.73085122,57134.0,57133.0,0.07476478]
[1725513213755,0.42958922,57134.0,57133.0,0.13602778]
[1725513216854,0.3668,57134.0,57133.0,0.13602778]
[1725513218742,0.3668,57134.0,57133.0,0.37602778]
[1725513219861,0.42958393,57134.0,57133.0,0.37602778]
[1725513220958,0.05887049,57134.0,57133.0,0.73682778]
[1725513221151,0.00021238,57142.0,57139.0,0.061256]
[1725513221349,0.00021238,57142.0,57140.0,0.155756]
[1725513222254,0.00021238,57142.0,57141.0,0.061255]
[1725513222456,0.00121238,57142.0,57141.0,0.061255]
[1725513223244,0.01421238,57142.0,57141.0,0.061255]
[1725513223855,0.00121238,57142.0,57141.0,0.061255]
[1725513224060,0.01521238,57142.0,57141.0,0.061255]
[1725513224655,0.01421238,57142.0,57141.0,0.062255]
[1725513224855,0.01421238,57142.0,57141.0,0.09195206]
[1725513224856,0.07308287,57142.0,57141.0,0.09195206]
[1725513225056,0.01421238,57142.0,57141.0,0.09195206]
[1725513225460,0.07308287,57142.0,57141.0,0.09195206]
[1725513233758,0.01421238,57142.0,57141.0,0.09195206]
[1725513234874,0.07308287,57142.0,57141.0,0.09195206]
[1725513235065,0.07308287,57142.0,57141.0,0.09095206]
[1725513235265,0.07408287,57142.0,57141.0,0.09095206]
[1725513235570,0.06708287,57142.0,57141.0,0.09195206]
[1725513235972,0.06708287,57142.0,57141.0,0.19195206]
[1725513236162,0.07108287,57142.0,57141.0,0.19195206]
[1725513236856,0.07108287,57142.0,57141.0,0.19295206]
[1725513237263,0.06008287,57142.0,57141.0,0.19195206]
[1725513237476,0.06708287,57142.0,57141.0,0.19295206]
[1725513239065,0.06008287,57142.0,57141.0,0.19195206]
[1725513239270,0.06008287,57142.0,57141.0,0.19295206]
[1725513239271,0.06908287,57142.0,57141.0,0.19295206]
[1725513239770,0.01021238,57142.0,57141.0,0.19295206]
[1725513240169,0.06908287,57142.0,57141.0,0.19295206]
[1725513242065,0.01021238,57142.0,57141.0,0.19295206]
[1725513242384,0.05887049,57146.0,57145.0,0.06125]
[1725513242572,0.1,57147.0,57146.0,0.061249]
[1725513242769,0.061243,57152.0,57146.0,0.106749]
[1725513242770,0.1,57149.0,57146.0,0.106749]
[1725513243072,0.1,57149.0,57148.0,0.1]
[1725513243767,0.1,57151.0,57148.0,0.1]
[1725513244067,0.1,57152.0,57151.0,0.1]
[1725513244265,0.21,57152.0,57151.0,0.1]
[1725513244462,0.3608,57165.0,57151.0,0.1]
[1725513244765,0.3608,57165.0,57146.0,0.4063]
[1725513244766,0.1,57159.0,57158.0,0.161236]
[1725513245666,0.15370957,57159.0,57158.0,0.161236]
[1725513246367,0.06276092,57161.0,57160.0,0.061234]
[1725513246670,0.06276092,57166.0,57165.0,0.061229]
[1725513246865,0.06276092,57166.0,57165.0,0.161229]
[1725513247060,0.11646083,57166.0,57165.0,0.161229]
[1725513247961,0.11646083,57166.0,57165.0,0.301229]
[1725513248569,0.05369991,57166.0,57165.0,0.301229]
[1725513249868,0.05369991,57166.0,57165.0,0.302229]
[1725513250068,0.05869991,57166.0,57165.0,0.303229]
[1725513251069,0.05869991,57166.0,57165.0,0.33228343]
[1725513251271,0.22605847,57170.0,57169.0,0.061225]
[1725513251569,0.06276092,57173.0,57172.0,0.061221]
[1725513251765,0.11645392,57173.0,57172.0,0.301221]
[1725513251961,0.06276092,57173.0,57172.0,0.301221]
[1725513253382,0.06576092,57173.0,57172.0,0.302221]
[1725513253569,0.06576092,57173.0,57172.0,0.303221]
[1725513257078,0.003,57173.0,57172.0,0.303221]
[1725513258384,0.003,57173.0,57172.0,0.33299006]
[1725513259683,0.003,57173.0,57172.0,0.38149006]
[1725513260581,0.05668864,57173.0,57172.0,0.38149006]
[1725513261476,0.003,57173.0,57172.0,0.38149006]
[1725513262779,0.3608,57184.0,57172.0,1.68498906]
[1725513262980,0.3608,57184.0,57183.0,0.24]
[1725513263186,0.41448366,57184.0,57183.0,0.24]
[1725513263385,0.41448366,57184.0,57183.0,0.30121]
[1725513263988,0.41648366,57184.0,57183.0,0.30121]
[1725513264488,0.002,57184.0,57183.0,0.30121]
[1725513265784,0.422002,57190.0,57183.0,0.30221]
[1725513265982,0.422002,57190.0,57189.0,0.24]
[1725513266388,0.52936128,57190.0,57189.0,0.24]
[1725513266987,0.47568143,57190.0,57189.0,0.24]
[1725513267187,0.52936138,57190.0,57189.0,0.24]
[1725513267389,0.52936138,57190.0,57189.0,0.241]
[1725513267689,0.16856138,57190.0,57189.0,0.242]
[1725513269282,0.16856138,57190.0,57189.0,0.27041783]
[1725513269577,0.40856138,57190.0,57189.0,0.03041783]
[1725513271283,0.40856453,57190.0,57189.0,0.03041783]
[1725513271978,0.47129283,57190.0,57189.0,0.03041783]
[1725513272180,0.4176134,57190.0,57189.0,0.03041783]
[1725513273086,0.1776134,57190.0,57189.0,0.03041783]
[1725513275497,0.4756851,57190.0,57189.0,0.03041783]
[1725513275696,0.5384134,57190.0,57189.0,0.03041783]
[1725513276296,0.1776134,57190.0,57189.0,0.03041783]
[1725513276498,0.4756851,57190.0,57189.0,0.03041783]
[1725513276699,0.5384134,57190.0,57189.0,0.03041783]
[1725513277589,0.4772114,57190.0,57189.0,0.09162083]
[1725513280097,0.0536831,57190.0,57189.0,0.09162083]
[1725513281399,0.06272166,57195.0,57191.0,0.061201]
[1725513281593,0.05367711,57194.0,57192.0,0.24]
[1725513281894,0.05367711,57193.0,57192.0,0.3012]
[1725513282092,0.06367711,57193.0,57192.0,0.3012]
[1725513283290,0.06367711,57193.0,57192.0,0.3022]
[1725513284002,0.06367711,57193.0,57192.0,0.1632]
[1725513286401,0.06367652,57193.0,57192.0,0.1632]
[1725513286706,0.05367652,57193.0,57192.0,0.1632]
[1725513286903,0.06272063,57201.0,57192.0,0.1632]
[1725513287105,0.3608,57202.0,57201.0,0.06119]
[1725513287418,0.06270943,57202.0,57201.0,0.06119]
[1725513287605,0.06270943,57207.0,57203.0,0.061188]
[1725513287798,0.06270943,57207.0,57206.0,0.1]
[1725513289800,0.06270943,57207.0,57206.0,0.162185]
[1725513290000,0.06270943,57207.0,57206.0,0.302185]
[1725513290709,0.06270943,57207.0,57206.0,0.33126486]
[1725513290907,0.06270943,57207.0,57206.0,0.33226486]
[1725513292112,0.3608,57218.0,57215.0,0.061175]
[1725513292303,0.3608,57218.0,57217.0,0.24]
[1725513292712,0.3608,57218.0,57217.0,0.301173]
[1725513294107,0.3608,57218.0,57217.0,0.302173]
[1725513294511,0.3608,57218.0,57217.0,0.301173]
[1725513294707,0.3608,57218.0,57217.0,0.302173]
[1725513294922,0.41445437,57218.0,57217.0,0.302173]
[1725513295105,0.47714908,57218.0,57217.0,0.302173]
[1725513295821,0.47714908,57218.0,57217.0,0.002]
[1725513296006,0.53832108,57218.0,57217.0,0.002]
[1725513297816,1.66264108,57218.0,57217.0,0.002]
[1725513298011,1.81381308,57218.0,57217.0,0.002]
[1725513298314,1.81381308,57218.0,57211.0,0.00026228]
[1725513298315,0.061179,57212.0,57211.0,0.00026228]
[1725513298504,0.661979,57212.0,57211.0,0.00026228]
[1725513298812,1.84903371,57212.0,57211.0,0.00026228]
[1725513299409,1.302698,57212.0,57211.0,0.00126228]
[1725513299610,1.84903371,57212.0,57211.0,0.00126228]
[1725513299817,1.84903371,57212.0,57211.0,0.00226228]
[1725513302210,1.91021271,57212.0,57211.0,0.00226228]
[1725513302430,0.061191,57200.0,57199.0,0.0458]
[1725513302625,0.061191,57200.0,57196.0,0.24]
[1725513302626,0.6008,57200.0,57191.0,0.0936]
[1725513302921,0.24,57192.0,57183.0,0.0924]
[1725513303123,0.061205,57187.0,57183.0,0.0924]
[1725513303416,0.12389971,57187.0,57183.0,0.0924]
[1725513304007,0.12289971,57187.0,57183.0,0.0924]
[1725513304612,0.12189971,57187.0,57183.0,0.0924]
[1725513305414,0.12289971,57187.0,57183.0,0.0924]
[1725513306209,0.12389971,57187.0,57183.0,0.0934]
[1725513306615,0.12689971,57187.0,57183.0,0.155609]
[1725513307625,0.06769471,57187.0,57186.0,0.24]
[1725513308817,0.06569471,57187.0,57186.0,0.301206]
[1725513309017,0.06769471,57187.0,57186.0,0.302206]
[1725513309316,0.06769471,57187.0,57186.0,0.241]
[1725513309710,0.06469471,57187.0,57186.0,0.241]
[1725513309930,0.06769471,57187.0,57186.0,0.242]
[1725513311023,0.005,57187.0,57186.0,0.242]
[1725513311219,0.005,57187.0,57186.0,0.303206]
[1725513315418,0.005,57187.0,57186.0,0.302206]
[1725513315821,0.05867873,57187.0,57186.0,0.302206]
[1725513316020,0.05567873,57187.0,57186.0,0.301206]
[1725513316223,0.05767873,57187.0,57186.0,0.301206]
[1725513316722,0.05567873,57187.0,57186.0,0.301206]
[1725513317019,0.05767873,57187.0,57186.0,0.301206]
[1725513317218,0.05567873,57187.0,57186.0,0.301206]
[1725513317413,0.05767873,57187.0,57186.0,0.301206]
[1725513318030,0.05567873,57187.0,57186.0,0.301206]
[1725513318216,0.05767873,57187.0,57186.0,0.301206]
[1725513318817,0.05567873,57187.0,57186.0,0.301206]
[1725513319019,0.05767873,57187.0,57186.0,0.302206]
[1725513319318,0.05767873,57187.0,57186.0,0.303206]
[1725513323323,0.00026146,57191.0,57186.0,0.664006]
[1725513323528,0.00026146,57191.0,57190.0,0.24]
[1725513323727,0.05393731,57191.0,57190.0,0.24]
[1725513324733,0.05393731,57191.0,57190.0,0.301202]
[1725513324948,0.05593731,57191.0,57190.0,0.302202]
[1725513325744,0.06271873,57197.0,57196.0,0.061196]
[1725513325940,0.11639197,57197.0,57196.0,0.301196]
[1725513326233,0.05367324,57197.0,57196.0,0.301196]
[1725513326929,0.05367324,57197.0,57196.0,0.302196]
[1725513327438,0.11639197,57197.0,57196.0,0.302196]
[1725513327622,0.05367324,57197.0,57196.0,0.302196]
[1725513327825,0.05367324,57197.0,57196.0,0.303196]
[1725513328232,0.11639197,57197.0,57196.0,0.303196]
[1725513329135,0.05367324,57197.0,57196.0,0.303196]
[1725513329331,0.11639197,57197.0,57196.0,0.303196]
[1725513330234,0.34197843,57197.0,57196.0,0.303196]
[1725513330435,0.11639197,57197.0,57196.0,0.063196]
[1725513330831,0.11639197,57197.0,57196.0,0.002]
[1725513331034,0.12391373,57197.0,57196.0,0.002]
[1725513331429,0.12391373,57197.0,57196.0,0.03136258]
[1725513332837,0.12391373,57197.0,57196.0,0.002]
[1725513333029,0.0612,57192.0,57191.0,0.00026228]
[1725513333225,0.662,57192.0,57191.0,0.00026228]
[1725513333633,0.72471873,57192.0,57191.0,0.00026228]
[1725513334030,0.72471873,57192.0,57191.0,0.02985925]
[1725513334230,0.72471873,57192.0,57191.0,0.00126228]
[1725513334433,0.72471873,57192.0,57191.0,0.00226228]
[1725513335940,0.77840077,57192.0,57191.0,0.00226228]
[1725513336235,0.77940077,57192.0,57191.0,0.00226228]
[1725513336438,0.78040077,57192.0,57191.0,0.00226228]
[1725513337340,0.78040077,57192.0,57191.0,0.03115283]
[1725513339641,0.54040077,57192.0,57191.0,0.27115283]
[1725513340936,0.54040077,57192.0,57191.0,0.33235383]
[1725513341739,0.11840077,57192.0,57191.0,0.33235383]
[1725513341935,0.22648769,57197.0,57196.0,0.061196]
[1725513342136,0.28016309,57197.0,57196.0,0.301196]
[1725513342335,0.0536754,57197.0,57196.0,0.301196]
[1725513343334,0.0546754,57197.0,57196.0,0.302196]
[1725513343540,0.0546754,57197.0,57196.0,0.303196]
[1725513347339,0.0546754,57197.0,57196.0,0.302196]
[1725513347538,0.05466823,57197.0,57196.0,0.302196]
[1725513348441,0.05366823,57197.0,57196.0,0.301196]
[1725513348847,0.06271928,57205.0,57204.0,0.061187]
[1725513349143,0.06271928,57205.0,57204.0,0.301187]
[1725513350043,0.02651249,57205.0,57204.0,0.363374]
[1725513350646,0.02651249,57205.0,57204.0,1.488814]
[1725513350849,0.3608,57212.0,57211.0,0.06118]
[1725513351047,0.22648769,57219.0,57218.0,0.061172]
[1725513351345,0.01738217,57219.0,57218.0,0.661972]
[1725513351549,0.3608,57234.0,57219.0,0.00880895]
[1725513351848,0.3608,57234.0,57230.0,0.24]
[1725513352146,0.4008,57234.0,57230.0,0.24]
[1725513352648,0.6408,57234.0,57229.0,0.06116]
[1725513353147,0.3608,57231.0,57229.0,0.06116]
[1725513353337,0.24,57234.0,57230.0,0.001]
[1725513353536,0.29,57234.0,57230.0,0.002]
[1725513353747,0.3608,57231.0,57230.0,0.002]
[1725513354048,0.3608,57231.0,57230.0,0.242]
[1725513354252,0.061154,57235.0,57230.0,0.241]
[1725513354547,0.3608,57231.0,57230.0,0.241]
[1725513355750,0.06268287,57231.0,57230.0,0.241]
[1725513356058,0.061154,57235.0,57230.0,0.241]
[1725513356059,0.12383687,57235.0,57230.0,0.241]
[1725513356352,0.17383687,57235.0,57230.0,0.241]
[1725513356742,0.17383687,57235.0,57230.0,0.27058116]
[1725513356939,0.17383687,57235.0,57230.0,0.27158116]
[1725513357143,0.17383687,57235.0,57230.0,0.27058116]
[1725513357451,0.17383687,57235.0,57230.0,0.27158116]
[1725513357847,0.061155,57234.0,57230.0,0.27158116]
[1725513358048,0.061157,57233.0,57230.0,0.27158116]
[1725513358240,0.061157,57233.0,57230.0,0.03158116]
[1725513359144,0.061157,57233.0,57230.0,0.27158116]
[1725513359651,0.101157,57233.0,57230.0,0.27058116]
[1725513359845,0.101157,57233.0,57230.0,0.27158116]
[1725513361555,0.061158,57232.0,57230.0,0.27158116]
[1725513361848,0.3608,57231.0,57230.0,0.03158116]
[1725513362044,0.55348287,57231.0,57230.0,0.03158116]
[1725513362651,0.55348287,57231.0,57230.0,0.03058116]
[1725513362845,0.55348287,57231.0,57230.0,0.03158116]
[1725513363354,0.55348287,57231.0,57230.0,0.03058116]
[1725513363547,0.55348287,57231.0,57230.0,0.03158116]
[1725513364145,0.55348287,57231.0,57230.0,0.03058116]
[1725513364345,0.55348287,57231.0,57230.0,0.03158116]
[1725513365649,0.42348287,57231.0,57230.0,0.03158116]
[1725513366050,0.42348287,57231.0,57230.0,0.27158116]
[1725513366657,0.42348287,57231.0,57230.0,0.33274016]
[1725513367961,0.42348287,57231.0,57230.0,0.29946615]
[1725513368664,0.42348287,57231.0,57230.0,0.0907588]
[1725513369449,0.42348256,57231.0,57230.0,0.3307588]
[1725513370550,0.42348074,57231.0,57230.0,0.3307588]
[1725513370753,0.3608,57231.0,57230.0,0.3307588]
[1725513370952,0.3608,57231.0,57230.0,0.3317588]
[1725513371551,0.42347998,57231.0,57230.0,0.3317588]
[1725513372153,0.3628,57231.0,57230.0,0.3327588]
[1725513372356,0.3628,57231.0,57230.0,0.3317588]
[1725513372551,0.42647965,57231.0,57230.0,0.3327588]
[1725513374560,0.06567965,57231.0,57230.0,0.3327588]
[1725513374758,0.05664099,57231.0,57230.0,0.3327588]
[1725513375064,0.003,57231.0,57230.0,0.3327588]
[1725513377255,0.05664146,57231.0,57230.0,0.3327588]
[1725513378364,0.11931889,57231.0,57230.0,0.3327588]
[1725513378755,0.11931889,57231.0,57230.0,0.4258588]
[1725513381861,0.08772,57253.0,57230.0,0.4258588]
[1725513381862,1e-08,57233.0,57232.0,0.061157]
[1725513382064,1e-08,57233.0,57232.0,0.301157]
[1725513382065,0.11630806,57233.0,57232.0,0.301157]
[1725513382259,0.11630805,57233.0,57232.0,0.301157]
[1725513382562,0.0626726,57233.0,57232.0,0.301157]
[1725513382964,0.0636726,57233.0,57232.0,0.302157]
[1725513383564,0.0636726,57233.0,57232.0,0.301157]
[1725513384453,0.001,57233.0,57232.0,0.301157]
[1725513385263,0.0626726,57243.0,57237.0,0.061151]
[1725513385264,0.3608,57242.0,57237.0,0.061151]
[1725513385466,0.0626726,57241.0,57240.0,0.24]
[1725513386459,0.0626726,57241.0,57234.0,0.00026205]
[1725513386460,0.0626726,57241.0,57234.0,0.06141605]
[1725513386660,0.060151,57238.0,57234.0,0.06141605]
[1725513386960,0.061152,57237.0,57234.0,0.06141605]
[1725513387161,0.060152,57237.0,57234.0,0.06141605]
[1725513388063,0.060152,57237.0,57234.0,0.09038865]
[1725513388655,0.060152,57237.0,57234.0,0.09138865]
[1725513390165,0.061152,57237.0,57234.0,0.09238865]
[1725513390955,0.061154,57235.0,57234.0,0.03123465]
[1725513391159,0.061155,57234.0,57224.0,0.301166]
[1725513391359,0.061155,57234.0,57224.0,0.24]
[1725513391360,0.061162,57227.0,57224.0,0.24]
[1725513392364,0.060162,57227.0,57224.0,0.24]
[1725513392564,0.300162,57227.0,57221.0,0.00026205]
[1725513392766,0.061168,57222.0,57221.0,0.00026205]
[1725513393156,0.12384576,57222.0,57221.0,0.00026205]
[1725513394577,1.61775776,57222.0,57209.0,0.0945]
[1725513394871,0.24,57211.0,57209.0,0.0945]
[1725513395261,0.06267776,57211.0,57209.0,0.12406494]
[1725513395559,0.061179,57212.0,57210.0,0.24]
[1725513395874,0.00026205,57216.0,57210.0,0.24]
[1725513395875,0.06296311,57216.0,57210.0,0.24]
[1725513396469,0.06296311,57216.0,57211.0,0.061179]
[1725513396768,0.06296311,57216.0,57212.0,0.061179]
[1725513396966,0.06296311,57216.0,57210.0,0.25]
[1725513397269,0.00026205,57216.0,57210.0,0.25]
[1725513397865,0.00026205,57216.0,57213.0,0.061177]
[1725513398065,0.06295791,57216.0,57213.0,0.061177]
[1725513398263,0.00026205,57216.0,57213.0,0.061177]
[1725513398772,0.00026205,57216.0,57214.0,0.0496]
[1725513399358,0.06295776,57216.0,57214.0,0.0496]
[1725513400371,0.06295776,57216.0,57214.0,0.0626]
[1725513402479,0.301175,57215.0,57214.0,0.013]
[1725513402776,0.52117071,57215.0,57214.0,0.013]
[1725513403179,0.52117071,57215.0,57204.0,0.00026205]
[1725513403180,0.061195,57197.0,57195.0,0.061196]
[1725513403471,0.24,57196.0,57195.0,0.061196]
[1725513403668,0.30269571,57196.0,57195.0,0.061196]
[1725513403879,0.66349571,57196.0,57195.0,0.061196]
[1725513404068,0.65649571,57196.0,57195.0,0.061196]
[1725513404473,0.65049571,57196.0,57195.0,0.061196]
[1725513405173,0.42349571,57196.0,57195.0,0.061196]
[1725513405873,0.42349571,57196.0,57195.0,0.064196]
[1725513406084,0.42749571,57196.0,57195.0,0.064196]
[1725513406273,0.3648,57196.0,57195.0,0.064196]
[1725513406471,0.3648,57196.0,57195.0,0.061196]
[1725513406677,0.007,57196.0,57195.0,0.09301256]
[1725513406875,0.007,57196.0,57195.0,0.45381256]
[1725513407980,0.007,57196.0,57195.0,0.09301256]
[1725513409083,0.007,57196.0,57195.0,0.03181656]
[1725513409278,0.007,57196.0,57191.0,0.24]
[1725513410081,0.007,57196.0,57193.0,0.061198]
[1725513410277,0.007,57196.0,57193.0,0.24]
[1725513410485,0.003,57196.0,57193.0,0.24]
[1725513410678,0.24,57200.0,57196.0,0.061195]
[1725513411581,0.24,57200.0,57197.0,0.061195]
[1725513412783,0.246,57200.0,57197.0,0.062195]
[1725513413383,0.252,57200.0,57197.0,0.063195]
[1725513415692,0.012,57200.0,57197.0,0.063195]
[1725513415993,0.24,57198.0,57197.0,0.063195]
[1725513417989,0.24,57198.0,57197.0,0.09508574]
[1725513418290,0.246,57198.0,57197.0,0.09508574]
[1725513419395,0.251,57198.0,57197.0,0.09508574]
[1725513419983,0.312194,57198.0,57197.0,0.09508574]
[1725513420386,0.312194,57198.0,57197.0,0.03389074]
[1725513420693,0.382194,57198.0,57197.0,0.03389074]
[1725513424395,0.382194,57198.0,57197.0,0.002]
[1725513424994,0.061201,57191.0,57178.0,0.3608]
[1725513425196,0.061211,57182.0,57179.0,0.1432]
[1725513426283,0.24,57180.0,57179.0,0.1432]
[1725513426483,0.24,57180.0,57179.0,0.1532]
[1725513426886,0.24,57180.0,57179.0,0.214413]
[1725513427082,0.24,57180.0,57179.0,0.206413]
[1725513427991,0.24,57180.0,57179.0,0.207413]
[1725513433393,0.24,57185.0,57179.0,0.1462]
[1725513434801,0.24,57185.0,57184.0,0.061208]
[1725513436097,0.245,57185.0,57184.0,0.061208]
[1725513436996,0.249,57185.0,57184.0,0.061208]
[1725513438305,0.249,57185.0,57184.0,0.422008]
[1725513439196,0.249,57185.0,57184.0,0.45290879]
[1725513439797,0.009,57185.0,57184.0,0.69290879]
[1725513441902,0.009,57185.0,57184.0,0.45290879]
[1725513443998,0.009,57185.0,57184.0,0.09210879]
[1725513444199,0.009,57185.0,57184.0,0.45290879]
[1725513446912,0.249,57185.0,57184.0,0.45290879]
[1725513447314,0.37293229,57185.0,57184.0,0.03090079]
[1725513447615,0.37293229,57185.0,57181.0,0.061211]
[1725513447795,0.06272529,57184.0,57182.0,0.06121]
[1725513447995,0.06272529,57184.0,57183.0,0.06121]
[1725513449711,0.06572529,57184.0,57183.0,0.06121]
[1725513450107,0.06772529,57184.0,57183.0,0.06121]
[1725513450808,0.06872529,57184.0,57183.0,0.06121]
[1725513459621,0.006,57184.0,57183.0,0.06121]
[1725513459914,0.106,57184.0,57183.0,0.06121]
[1725513467022,0.106,57184.0,57179.0,0.4888608]
[1725513467225,0.161213,57180.0,57179.0,0.0311808]
[1725513467428,0.161213,57180.0,57174.0,0.061219]
[1725513467429,0.061214,57179.0,57174.0,0.061219]
[1725513467728,0.161217,57176.0,57174.0,0.061219]
[1725513468020,0.16272945,57176.0,57175.0,0.06148028]